Cogmind - Beta 14 @@@ ROGUE MODE // 2024.08.14 @ 00:24:01 Player: mournfully Result: Destroyed by G-34 Mercenary with Small Laser Performance ------------- Evolutions (0) 0 Regions Visited (4) 800 Robots Destroyed (48) 240 Value Destroyed (996) 996 Prototype IDs (23) 460 Alien Tech Used (0) 0 Bonus (300) 300 TOTAL SCORE: 2796 Bonus ------- Aligned with FarCom 300 Cogmind --------- Core Integrity 0/250 Matter 274/300 Energy 150/150 System Corruption 0% Temperature Cool (42) Movement Treading (240) Ox1 Location -9/Mines Parts ------- > --- POWER (1) -------- Light Angular Momentum Engine > --- PROPULSION (2) --- Light Treads Light Treads > --- UTILITY (2) ------ High-capacity Storage Unit Hardened Medium Armor Plating > --- WEAPON (2) ------- Light Cannon Light Cannon > --- INVENTORY (20) --- Light Ion Engine Light Ion Engine Light Nuclear Core Light Treads Xenon Bombardment Thruster Large Matter Pod (150) Experimental Sensor Array Seismic Detector ECM Suite Light Armor Plating Hardened Medium Armor Plating Improved Light Armor Plating Hacking Suite Light Assault Rifle Light Assault Rifle Light Cannon Grenade Launcher Mining Laser Longsword +1 Peak State ------------ > --- POWER ------------ Light Angular Momentum Engine > --- PROPULSION ------- Light Treads Light Treads > --- UTILITY ---------- High-capacity Storage Unit Hardened Medium Armor Plating > --- WEAPON ----------- Light Cannon Longsword +1 > --- INVENTORY -------- Light Ion Engine Light Ion Engine Light Nuclear Core Light Treads Light Treads Xenon Bombardment Thruster Large Matter Pod Seismic Detector ECM Suite Light Armor Plating Light Armor Plating Hardened Medium Armor Plating Improved Light Armor Plating Hacking Suite Light Assault Rifle Light Assault Rifle Light Cannon Light Cannon Grenade Launcher Mining Laser [Rating: 23] Favorites ----------- Power Light Ion Engine Engine Light Ion Engine Propulsion Light Treads Treads Light Treads Utility High-capacity Storage Unit Device Seismic Detector Storage High-capacity Storage Unit Protection Hardened Medium Armor Plating Weapon Light Cannon Ballistic Gun Light Assault Rifle Ballistic Cannon Light Cannon Launcher Grenade Launcher Special Weapon Mining Laser Slashing Weapon Longsword +1 Build | -11 -10 -10 -10 -9 ------- Run | Yrd Mat Min Exi Min Slots Evolved . | . . . . . Power . | . . . . . Propulsion . | . . . . . Utility . | . . . . . Weapon . | . . . . . Parts Attached 42 | 7 21 3 . 11 Power 4 | 1 1 1 . 1 Engine 4 | 1 1 1 . 1 Core . | . . . . . Reactor . | . . . . . Propulsion 5 | 2 2 . . 1 Treads 5 | 2 2 . . 1 Leg . | . . . . . Wheel . | . . . . . Hover . | . . . . . Flight . | . . . . . Utility 9 | 2 4 1 . 2 Device 2 | 1 . . . 1 Storage 3 | 1 2 . . . Processor . | . . . . . Hackware . | . . . . . Protection 4 | . 2 1 . 1 Artifact . | . . . . . Weapon 24 | 2 14 1 . 7 Energy Gun . | . . . . . Energy Cannon . | . . . . . Ballistic Gun 6 | 2 4 . . . Ballistic Cannon 12 | . 8 1 . 3 Launcher 3 | . 1 . . 2 Special Weapon 2 | . 1 . . 1 Impact Weapon . | . . . . . Slashing Weapon 1 | . . . . 1 Piercing Weapon . | . . . . . Special Melee Weapon . | . . . . . Unidentified Prototypes . | . . . . . Parts Lost 3 | . 1 1 . 1 Power 2 | . 1 1 . . Propulsion 1 | . . . . 1 Utility . | . . . . . Weapon . | . . . . . Highest Loss Streak 1 | . 1 1 . 1 To Critical Strikes . | . . . . . Average Slot Usage (%) 99 | . 99 100 100 99 Engine 13 | . 13 14 14 13 Treads 28 | . 28 28 28 28 Device 1 | . 2 . . . Storage 14 | . 14 14 14 14 Protection 12 | . 11 14 14 13 Ballistic Gun 2 | . 7 . . . Ballistic Cannon 23 | . 18 27 28 23 Slashing Weapon 1 | . . . . 4 Peak Build Rating 23 | 7 9 11 12 23 Average Rating 11 | 5 7 10 11 17 On Entrance 7 | . 7 8 11 12 Naked Turns . | . . . . . Heaviest Build 92 | 11 92 57 57 63 Greatest Support 40 | 40 40 40 40 40 Greatest Overweight (x) 2 | 2 2 1 1 1 Average Overweight (x) . | . 1 1 1 1 Largest Inventory Capacity 25 | 8 25 20 20 20 Average Capacity 19 | 7 19 20 20 20 Most Carried 20 | 2 20 20 20 20 Average Carried 17 | 1 12 19 19 19 Final Capacity 20 | 8 20 20 20 20 Final Carried 20 | 2 17 20 20 19 Class Distribution -------------------- 100% | Mutant Dominant Class ---------------- Mutant | -10/Materials Mutant | -10/Mines Mutant | -10/Exiles Mutant | -9/Mines Resources | -11 -10 -10 -10 -9 ----------- Run | Yrd Mat Min Exi Min Matter Collected 1320 | 282 623 211 . 204 Remotely . | . . . . . Salvage Created 999 | 25 669 171 . 134 Parts 91 | 7 66 12 . 6 Haulers Intercepted 2 | . 2 . . . Recyclers Shooed 3 | 1 1 1 . . Parts Field Recycled . | . . . . . Retrieved Matter . | . . . . . Parts Self-Destructed . | . . . . . Prevented . | . . . . . Kills | -11 -10 -10 -10 -9 ------- Run | Yrd Mat Min Exi Min Combat Hostiles Destroyed 35 | . 23 6 . 6 Guns 5 | . 5 . . . Cannons 26 | . 15 6 . 5 AOE 4 | . 3 . . 1 Classes Destroyed 9 | 1 8 . . . Worker 1 | . 1 . . . Builder 1 | . 1 . . . Tunneler 3 | 2 1 . . . Hauler 2 | . 2 . . . Recycler 2 | . 1 1 . . Operator 1 | . 1 . . . Watcher 3 | . 3 . . . Swarmer 15 | . 12 . . 3 Grunt 20 | . 11 6 . 3 Best Kill Streak 5 | 2 5 2 . 2 Combat Bots Only 3 | . 3 2 . 2 Max Kills in Single Turn 3 | 1 3 1 . 1 Gunslinging . | . . . . . Exploded 2 | . 2 . . 1 Melee . | . . . . . Uniques/NPCs Destroyed . | . . . . . Combat | -11 -10 -10 -10 -9 -------- Run | Yrd Mat Min Exi Min Hostile Shots Fired 190 | . 111 31 . 48 Missed 52 | . 31 6 . 15 Damage Taken 1453 | . 787 354 . 312 Core 253 | . 160 59 . 34 Absorbed by Shields . | . . . . . Regen/Repaired (Parts) 142 | . 142 . . . Core Remaining (%) 100 | 100 . . . . Volleys Fired 144 | 7 99 19 . 19 Largest 2 | 2 2 2 . 2 Hottest 135 | 40 100 70 . 135 Shots Fired 275 | 14 187 38 . 36 Gun 104 | 14 90 . . . Cannon 155 | . 91 35 . 29 Launcher 6 | . 2 3 . 1 Special 10 | . 4 . . 6 Kinetic 259 | 14 181 35 . 29 Thermal 10 | . 4 . . 6 Explosive 6 | . 2 3 . 1 Electromagnetic . | . . . . . Robot Hit Streak 8 | 2 7 8 . 7 Robot Miss Streak 6 | 3 6 2 . 5 Penetration Max . | . . . . . Secondary Targets 1 | . 1 . . . Max Gunslinging Chain 1 | . 1 . . . Shots Hit Robots 128 | 6 85 27 . 10 Core Hits 68 | 6 44 12 . 6 Critical Kills . | . . . . . Critical Parts Destroyed 1 | . 1 . . . Critical Strikes 7 | . 5 1 . 1 Destroy 1 | . 1 . . . Blast 6 | . 4 1 . 1 Melee Attacks 1 | . . . . 1 Impact . | . . . . . Slashing 1 | . . . . 1 Piercing . | . . . . . Sneak Attacks . | . . . . . Combat Hostiles . | . . . . . Follow-up Attacks . | . . . . . Damage Inflicted 2273 | 46 1311 617 . 299 Guns 448 | 46 402 . . . Cannons 1290 | . 667 431 . 192 Explosions 479 | . 203 176 . 100 Melee . | . . . . . Ramming 56 | . 39 10 . 7 Kinetic 1738 | 46 1069 431 . 192 Thermal . | . . . . . Explosive 479 | . 203 176 . 100 Electromagnetic . | . . . . . Impact . | . . . . . Slashing . | . . . . . Piercing . | . . . . . Highest Corruption . | . . . . . Average Corruption . | . . . . . Corruption Purged . | . . . . . Corruption Blocked . | . . . . . Overload Shots . | . . . . . Overflow Damage 17 | . 5 6 . 6 Projectiles 11 | . 5 6 . . Explosions 6 | . . . . 6 Melee . | . . . . . Knockbacks 15 | . 12 1 . 2 Impact 1 | . 1 . . . Kinetic 12 | . 9 1 . 2 Secondary 2 | . 2 . . . Self-Inflicted Damage 1 | . . 1 . . Shots 1 | . . 1 . . Rammed 18 | . 10 5 . 3 Targets Rammed 18 | . 10 5 . 3 Kicked . | . . . . . Crushed . | . . . . . Highest Temperature 246 | . 96 180 . 246 Average Temperature 50 | . 22 78 . 79 Received Heat Transfer 471 | . 150 231 . 90 Effects 2 | . . . . 2 Interference 2 | . . . . 2 Siege Activations . | . . . . . Robots Corrupted . | . . . . . Combat Hostiles . | . . . . . Parts Fried . | . . . . . Impact Corruptions . | . . . . . Robots Melted . | . . . . . Combat Hostiles . | . . . . . Parts Melted . | . . . . . Heat Transferred . | . . . . . Parts Sabotaged . | . . . . . Parts Stolen . | . . . . . Parts Stripped . | . . . . . Power Chain Reactions . | . . . . . Alert | -11 -10 -10 -10 -9 ------- Run | Yrd Mat Min Exi Min Peak Influence 247 | 10 247 169 . 140 Initial 96 | . 6 96 . . Average 72 | 5 129 54 . 27 Maximum Alert Level 1 | . 1 . . . Low Security (%) 91 | 100 77 100 . 100 Level 1 8 | . 22 . . . Level 2 . | . . . . . Level 3 . | . . . . . Level 4 . | . . . . . Level 5 . | . . . . . High Security . | . . . . . Max Security . | . . . . . Squads Dispatched 7 | . 6 1 . . Investigation 6 | . 5 1 . . Extermination . | . . . . . Reinforcement 1 | . 1 . . . Assault . | . . . . . Garrison . | . . . . . Intercept . | . . . . . Searches Triggered . | . . . . . Construction Impeded . | . . . . . Haulers Reinforced . | . . . . . Active Scanning Responses . | . . . . . Cargo Convoy Interrupts . | . . . . . Stealth | -11 -10 -10 -10 -9 --------- Run | Yrd Mat Min Exi Min Distress Signals 1 | . 1 . . . Communications Jammed . | . . . . . Distress Signals . | . . . . . Times Spotted 60 | . 42 6 . 12 Peak Tracking Total 5 | . 4 2 . 5 Tactical Retreats 6 | . 4 . . 2 Traps | -11 -10 -10 -10 -9 ------- Run | Yrd Mat Min Exi Min Traps Triggered 3 | . 3 . . . Indirectly . | . . . . . Trap Hack Attempts . | . . . . . Triggered . | . . . . . Disarmed . | . . . . . Reprogrammed . | . . . . . Reused . | . . . . . Traps Extracted . | . . . . . Installed . | . . . . . Triggered . | . . . . . Machines | -11 -10 -10 -10 -9 ---------- Run | Yrd Mat Min Exi Min Machines Disabled 2 | . 2 . . . Max in Single Turn 1 | . 1 . . . Machines Repaired . | . . . . . Machines Dismantled . | . . . . . Machines Sabotaged . | . . . . . Overloaded Fab Kills . | . . . . . Hacking | -11 -10 -10 -10 -9 --------- Run | Yrd Mat Min Exi Min Machines Accessed 15 | . 10 1 3 1 Terminals 7 | . 7 . . . Fabricators . | . . . . . Repair Stations 1 | . 1 . . . Recycling Units 2 | . 2 . . . Scanalyzers . | . . . . . Garrison Access . | . . . . . Total Hacks 69 | . 41 1 26 1 Successful 44 | . 16 1 26 1 Failed 25 | . 25 . . . Catastrophic 5 | . 5 . . . Database Lockouts . | . . . . . Manual 18 | . 17 . 1 . Terminals 23 | . 23 . . . Fabricators . | . . . . . Repair Stations 8 | . 8 . . . Recycling Units 10 | . 10 . . . Scanalyzers . | . . . . . Garrison Access . | . . . . . Terminal Hacks 35 | . 7 1 26 1 Record 28 | . 3 . 25 . Open Door 2 | . . 1 . 1 Unreport Threat 2 | . 2 . . . Hauler Manifests 1 | . 1 . . . Zone Layout 1 | . 1 . . . Derelict Proto ID Bank 1 | . . . 1 . Fabricator Hacks . | . . . . . Repair Station Hacks 6 | . 6 . . . Scan Component 3 | . 3 . . . Repair 3 | . 3 . . . Recycling Unit Hacks 1 | . 1 . . . Retrieve Components 1 | . 1 . . . Scanalyzer . | . . . . . Garrison Access Hacks . | . . . . . Unauthorized Hacks 2 | . 2 . . . Terminals . | . . . . . Fabricators . | . . . . . Repair Stations . | . . . . . Recycling Units 2 | . 2 . . . Reject 1 | . 1 . . . Mask 1 | . 1 . . . Scanalyzers . | . . . . . Garrison Access . | . . . . . Data Cores Recovered . | . . . . . Used . | . . . . . Hacking Detections 10 | . 10 . . . Full Trace Events 4 | . 4 . . . Feedback Events . | . . . . . Feedback Blocked . | . . . . . Robot Schematics Acquired . | . . . . . Robots Built . | . . . . . Authchips . | . . . . . Time . | . . . . . Total Robot Build Rating . | . . . . . Part Schematics Acquired . | . . . . . Parts Built . | . . . . . Authchips . | . . . . . Time . | . . . . . Total Part Build Rating . | . . . . . Parts Repaired 3 | . 3 . . . Time 78 | . 78 . . . Parts Recycled . | . . . . . Recycled Matter . | . . . . . Retrieved Matter . | . . . . . Retrieved Components 9 | . 9 . . . Parts Scanalyzed . | . . . . . Part Schematics Acquired . | . . . . . Parts Damaged . | . . . . . Bothacking | -11 -10 -10 -10 -9 ------------ Run | Yrd Mat Min Exi Min Used RIF Installer . | . . . . . Robots Hacked . | . . . . . Non-combat . | . . . . . Combat . | . . . . . Robot Hacks Applied . | . . . . . Relay Couplers Released . | . . . . . Fabnet Peak Effective % . | . . . . . Robots Rewired . | . . . . . Allies Hacked . | . . . . . Hacks Repelled . | . . . . . Allies | -11 -10 -10 -10 -9 -------- Run | Yrd Mat Min Exi Min Total Allies 2 | . . 2 . . Largest Group 2 | . . 2 1 . Highest-Rated Group 42 | . . 42 31 . Highest-Rated Ally 31 | . . 31 31 . Total Orders . | . . . . . Ally Attacks . | . . . . . Total Damage . | . . . . . Kills . | . . . . . Allies Corrupted . | . . . . . Allies Melted 1 | . . 1 . . Intel | -11 -10 -10 -10 -9 ------- Run | Yrd Mat Min Exi Min Robot Analysis Total . | . . . . . Derelict Logs Recovered 4 | . . 2 . 2 Drone Launches . | . . . . . Drone Recoveries . | . . . . . Exploration | -11 -10 -10 -10 -9 ------------- Run | Yrd Mat Min Exi Min Turns Passed 8226 | 110 2676 1700 1206 2534 Spaces Moved 3074 | 56 925 672 502 919 Core 13 | 13 . . . . Treads 3061 | 43 925 672 502 919 Legs . | . . . . . Wheels . | . . . . . Hover . | . . . . . Flight . | . . . . . Fastest Speed 50 | 50 160 240 240 240 Average Speed 238 | 143 240 240 240 240 Slowest Speed 320 | 160 320 240 240 240 Overloaded Moves . | . . . . . Propulsion Burnouts . | . . . . . Robots Hopped . | . . . . . Cave-ins Triggered . | . . . . . Exploration Rate (%) 75 | 5 97 98 93 84 Regions Visited 4 Branch Regions 3 Pre-discovered Areas 3 | . . 1 1 1 Known Exits Taken . | . . . . . Unknown Exits Taken 4 | 1 1 1 1 . Scrap Searched 3 | . . 1 . 2 Spaces Dug 6 | . 4 . . 2 Terrain Destroyed 41 | . 18 15 . 8 Melee . | . . . . . Projectile 7 | . 4 . . 3 AOE 34 | . 14 15 . 5 Terrain Rammed . | . . . . . Walls Destroyed . | . . . . . Machines Disabled . | . . . . . Actions | -11 -10 -10 -10 -9 --------- Run | Yrd Mat Min Exi Min Total 3662 | 71 1180 715 505 1191 Wait 337 | . 95 11 . 231 Move 3070 | 55 924 671 501 919 Hop . | . . . . . Pick Up 33 | 2 22 4 2 3 Fast Attach 11 | 7 2 1 . 1 Attach 6 | . 4 1 . 1 Detach 3 | . 2 1 . . Swap 25 | . 15 1 . 9 Drop 14 | . 7 1 2 4 Fire 144 | 7 99 19 . 19 Melee 1 | . . . . 1 Ram . | . . . . . Kick . | . . . . . Crush 18 | . 10 5 . 3 Escape Stasis . | . . . . . Rewire . | . . . . . Trap . | . . . . . Miscellaneous . | . . . . . Route ------- -11/Scrapyard -10/Materials (discovered 4 exits: [*Mat x3] / *Min) -10/Mines (discovered 3 exits: [*Mat x2] / *Exi) -10/Exiles (discovered 2 exits: *Min x2) -9/Mines History --------- Turn | Location | Event 29 | -11/Scrapyard | Discovered new exit (range 14) 111 | -11/Scrapyard | Entered Materials 302 | -10/Materials | Build established: Mutant 365 | -10/Materials | Discovered new exit (range 10) 874 | -10/Materials | Discovered new exit (range 16) 1237 | -10/Materials | Repaired Lgt. Cannon 1267 | -10/Materials | Core integrity fell below 50% 1595 | -10/Materials | Discovered new exit (range 16) 1801 | -10/Materials | Discovered new exit (range 15) 2728 | -10/Materials | Repaired Lgt. Cannon 2755 | -10/Materials | Repaired Seismic Detector 2787 | -10/Materials | Entered Mines 2984 | -10/Mines | Learned location of Zion (-7) 3009 | -10/Mines | Discovered new exit (range 15) 3042 | -10/Mines | Met a Derelict shopkeep closing up shop 3676 | -10/Mines | Core integrity fell below 20% 3755 | -10/Mines | Learned 2 Materials zone layouts 4074 | -10/Mines | Deemed a non-threat by the Exiles lab entrance 4348 | -10/Mines | Discovered new exit (range 15) 4477 | -10/Mines | Discovered new exit (range 5) 4487 | -10/Mines | Entered Exiles 4487 | -10/Exiles | Accompanied by 1 ally 4517 | -10/Exiles | Led the pair of lost Derelicts to a safe place 4519 | -10/Exiles | Discovered new exit (range 15) 4600 | -10/Exiles | Met 8R-AWN 4639 | -10/Exiles | Met EX-HEX 4706 | -10/Exiles | Met EX-BIN 4739 | -10/Exiles | Aligned with FarCom system 4742 | -10/Exiles | Given EX-Vault access code 4797 | -10/Exiles | Opened EX-Vault 4819 | -10/Exiles | Found Longsword +1 4919 | -10/Exiles | Warned to stay clear of 0b10 Research branches 5055 | -10/Exiles | Met EX-DEC 5188 | -10/Exiles | Visited The Gauntlet 5662 | -10/Exiles | Discovered new exit (range 14) 5693 | -10/Exiles | Left Exiles lab with Longsword +1 5693 | -10/Exiles | Entered Mines 5768 | -9/Mines | Excavation squad dispatched 5768 | -9/Mines | A large section of the Mines collapsed 5877 | -9/Mines | Found a hidden stash of uninstalled traps 6018 | -9/Mines | Excavation squad dispatched 6021 | -9/Mines | Learned 2 Materials zone layouts 6067 | -9/Mines | Met a Derelict who couldn't figure out how to use a Trap Extractor 6268 | -9/Mines | Excavation squad dispatched 6377 | -9/Mines | Learned Materials emergency access door positions 6518 | -9/Mines | Excavation squad dispatched 6768 | -9/Mines | Excavation squad dispatched 7018 | -9/Mines | Excavation squad dispatched 7268 | -9/Mines | Excavation squad dispatched 7518 | -9/Mines | Excavation squad dispatched 7601 | -9/Mines | Learned location of Storage (-7) 7768 | -9/Mines | Excavation squad dispatched 7849 | -9/Mines | Found a damaged Exp. Sensor Array with a note attached 7854 | -9/Mines | Found Prototype Device 8018 | -9/Mines | Excavation squad dispatched 8227 | -9/Mines | Destroyed by G-34 Mercenary with Small Laser Last Messages --------------- patrols are more likely to show up, but that doesn't do us much good if we can't spot those areas until they're on top of us... With this we can! Deliver it to Megawrench for repairs then we'll never be afraid of an ambush while sneaking around Materials again, ha." 07854_ Dropped Lgt. Armor Plating. 07854_ Acquired Prototype Device. 08018_ ALERT: Derelict activity in mines confirmed. Dispatching additional escorted excavation squad. 08040_ Slammed into K-01 Serf. 08071_ Acquired 2 matter. 08076_ Acquired 8 matter. 08165_ Acquired 5 matter. 08177_ Acquired 21 matter. 08196_ Slammed into U-05 Engineer. 08201_ Lgt. Treads destroyed. 08215_ G-34 Mercenary destroyed. 08223_ K-01 Serf collects debris. Map ----- +----------------------------------------------------+ | #### ##????????????# #??????????# #####?? | | #### ! ##????????????# #????####?# ##? | | ####?????????# #???## ## #? | | ##### ####??????# #???# #? | | #???#### ##%[ ##?????# ##### #?? | | #??????####### ####### ##""## #??? | | #????????????# % #"]! # #####??? | | ?????????????## ######## #"!]! ##??????? | | ??????????????### ##??????# #"!^= * ##???????? | | ????????????????####???????# #"] /#X #????????? | | ???????????????????????????# ##""## ##????????? | | ???????????????????????????# ##### ##?????????? | | ???????????????????????????# #???# #??????????? | | ???????????????????????????# #???## #######????? | | ???????????????????######### #???## #????? | | ???????????????????# = #???# ### #????? | | ????????????##?##??#%#########???# #?# #????? | | ???????????# """ ##=#???????????# #?# #????? | | #??????????# """ [=#??########### ##?# #????? | | #?????????? """ ##=#??# ##??# #????? | | #??????????# ??#%#??# ######### #???# #????? | | #??????????? ???# #??# #??????## #???# #????? | | #######????# ?????#%#??# #?###### ##??# #????? | | ## ###??# ??????#%#??# ### ## ##?# #????? | | ##?#??????## ##?# ## g #?# #????? | | #?????## ###@## #?# #????? | | # #????# kg!## ## ##?# #????? | | ## #? #????# g ##### #######??# #????? | | ?#% #??? ##????# #??# ##????????# #????? | | ?# %#???? ##?????## ? ##?????????# #????? | | ?# =#?????????????# # #???????????# #????? | | ## #?????????????# ####### #????????????# #????? | | #???????????### #?????##?????????????# ##???? | | ####??g????## ###?????????????????## ##??? | | ##### ##??g???# #########?????????# #??? | | #### ##?g???# """ g gg #?????????# #??? | | ## ######### """ g g #?????????## #??? | | #"##"#" C""" ######g #??????????# ##??? | | ## # ###g g ####### #??????????# #???? | | ##""########## g #??????????## #???? | | #### #???????# #???????????# ##??? | | ##???##???????# #######??????????## ##?? | | ####?????????????# #######?????????## ##? | | ##????????????????# #?######### #? | | #?????????????????# ##### ### #? | | ##?????????????????#& ##?# ## ##? | | ##??????????????????#[& #?# #####?? | | #??????????????????# & ##### ##?????? | | #?????????????? ##### """ ##??????? | | ##???????????????? ## """ ##???????? | +----------------------------------------------------+ Best States ------------- Heat Dissipation 25 Energy Generation 18 Energy Capacity 150 Matter Stores 300 Matter Capacity 300 Sight Range 16 Terrain Scan Density 10 ECM Strength 1 Armor Coverage 225 Evasion (%) 40 Recoil Reduction 2 Item Schematics ----------------- None Robot Schematics ------------------ None Fabricated ------------ Nothing Alien Tech Used ----------------- None Achievements -------------- Novice Programmer Challenges ------------ None Game ------ Seed FieldAlphaDeconstructor Manual? 0 Play Time 00:49:59 Cumulative 52.2 hours Start 2024.08.13 @ 23:29:51 End 2024.08.14 @ 00:24:01 Sessions 1 Manual Loads 0 Difficulty Rogue Special Mode None Game No. 25 Rogue 24 Adventurer 1 Explorer 0 Win Type - Total 0 Types 0/0/0/0/0/0/0/0/0 Lore% 10 Gallery% 22 Achievement% 26 Wizard Run 0 Options --------- Layout 1 ASCII 0 Keyboard 0 Movement Vi Keybinds 0 Fullscreen 2 Font 24/Smallcaps Map View 50x35 Zoom Use 0% Tactical HUD 1 Map Filters NONE Filters NONE Steam 1 RUN: 2287d6ec-19b0-46b7-9fdb-1ef87da6038f